bitfinex-derivatives/quotes_BTCF0:USTF0_20251225
["timestamp","ask_amount","ask_price","bid_price","bid_amount"]
[1766640373384,0.02499847,87727.0,87712.0,0.03]
[1766640373580,0.02499847,87726.0,87712.0,0.03]
[1766640373779,0.02499847,87725.0,87712.0,0.03]
[1766640373975,0.0114066,87730.0,87712.0,0.03]
[1766640374182,0.02499795,87729.0,87712.0,0.03]
[1766640374480,0.02499795,87728.0,87712.0,0.03]
[1766640374675,0.02499795,87727.0,87712.0,0.03]
[1766640374879,0.02499795,87726.0,87712.0,0.03]
[1766640375080,0.02499795,87725.0,87712.0,0.03]
[1766640375280,0.0114066,87730.0,87712.0,0.03]
[1766640375493,0.02499788,87729.0,87712.0,0.03]
[1766640375694,0.02499788,87728.0,87712.0,0.03]
[1766640375885,0.02499788,87727.0,87713.0,0.0114087]
[1766640376193,0.02499788,87726.0,87713.0,0.0414087]
[1766640376409,0.00017094,87731.0,87713.0,0.0414087]
[1766640376596,0.0249966,87730.0,87713.0,0.0414087]
[1766640376894,0.09176564,87739.0,87717.0,0.0114082]
[1766640377106,0.0507654,87739.0,87719.0,0.011408]
[1766640377282,0.0507654,87739.0,87719.0,0.041408]
[1766640377879,0.0507654,87739.0,87720.0,0.00017094]
[1766640378088,0.00017094,87738.0,87720.0,0.03017094]
[1766640378604,0.04117118,87738.0,87720.0,0.03017094]
[1766640378785,0.00017094,87738.0,87720.0,0.03017094]
[1766640380089,0.00017094,87738.0,87721.0,0.0114076]
[1766640380281,0.00017094,87738.0,87721.0,0.0414076]
[1766640380993,0.03099866,87742.0,87721.0,0.03]
[1766640381188,0.26120281,87749.0,87721.0,0.03]
[1766640381501,0.2111041,87749.0,87727.0,0.0114068]
[1766640381685,0.2111041,87749.0,87728.0,0.05308]
[1766640381885,0.0114041,87749.0,87728.0,0.08308]
[1766640382085,0.00017094,87747.0,87728.0,0.08308]
[1766640383490,0.00017094,87747.0,87729.0,0.0114066]
[1766640383689,0.00017094,87747.0,87729.0,0.0414066]
[1766640384497,0.0372827,87760.0,87737.0,0.0114056]
[1766640384685,0.0372827,87760.0,87737.0,0.0414056]
[1766640385497,0.00017094,87757.0,87740.0,0.00017094]
[1766640385695,0.00017094,87757.0,87740.0,0.04157614]
[1766640390498,0.00017094,87757.0,87741.0,0.0114051]
[1766640390700,0.00017094,87757.0,87741.0,0.0414051]
[1766640396604,0.00017094,87757.0,87741.0,0.03]
[1766640398196,0.0114038,87751.0,87741.0,0.0656]
[1766640398398,0.00017094,87757.0,87741.0,0.03]
[1766640398700,0.0114043,87748.0,87741.0,0.02256223]
[1766640398908,0.0114043,87748.0,87741.0,0.00945697]
[1766640399097,0.0114048,87744.0,87740.0,1e-08]
[1766640399304,0.0114044,87747.0,87740.0,0.01000001]
[1766640399607,0.0114046,87745.0,87740.0,0.01000001]
[1766640399901,0.0114046,87745.0,87740.0,1e-08]
[1766640400896,0.0114042,87748.0,87740.0,1e-08]
[1766640401302,0.0114044,87747.0,87740.0,1e-08]
[1766640402496,0.0114047,87745.0,87740.0,1e-08]
[1766640403198,0.0114043,87748.0,87740.0,1e-08]
[1766640403609,0.0114045,87746.0,87740.0,1e-08]
[1766640410313,0.0114041,87749.0,87740.0,1e-08]
[1766640411813,0.0114044,87747.0,87740.0,1e-08]
[1766640412705,0.0114041,87750.0,87740.0,1e-08]
[1766640412906,0.0114042,87748.0,87740.0,1e-08]
[1766640413918,0.0114038,87751.0,87740.0,1e-08]
[1766640414117,0.0114041,87749.0,87740.0,1e-08]
[1766640414316,0.02461721,87748.0,87740.0,1e-08]
[1766640414505,0.0114043,87747.0,87740.0,1e-08]
[1766640417120,0.011404,87750.0,87740.0,1e-08]
[1766640417417,0.02462129,87749.0,87740.0,1e-08]
[1766640417618,0.02462129,87748.0,87740.0,1e-08]
[1766640417817,0.02462129,87747.0,87740.0,1e-08]
[1766640418116,0.011404,87750.0,87740.0,1e-08]
[1766640418315,0.02462142,87749.0,87740.0,1e-08]
[1766640418507,0.02462142,87748.0,87740.0,1e-08]
[1766640418708,0.02462142,87747.0,87740.0,1e-08]
[1766640418907,0.011404,87750.0,87740.0,1e-08]
[1766640419108,0.0114042,87748.0,87740.0,1e-08]
[1766640419312,0.02462142,87747.0,87740.0,1e-08]
[1766640423622,0.0114041,87749.0,87740.0,1e-08]
[1766640423813,0.02462522,87748.0,87740.0,1e-08]
[1766640424122,0.02462522,87747.0,87740.0,1e-08]
[1766640424422,0.0114041,87749.0,87740.0,1e-08]
[1766640424622,0.02462635,87748.0,87740.0,1e-08]
[1766640424821,0.02462635,87747.0,87740.0,1e-08]
[1766640425025,0.0114041,87749.0,87740.0,1e-08]
[1766640425321,0.02462646,87748.0,87740.0,1e-08]
[1766640425522,0.02462646,87747.0,87740.0,1e-08]
[1766640425712,0.0114041,87749.0,87740.0,1e-08]
[1766640425912,0.02462799,87748.0,87740.0,1e-08]
[1766640426113,0.02462799,87747.0,87740.0,1e-08]
[1766640426414,0.0114041,87749.0,87740.0,1e-08]
[1766640426612,0.02462992,87748.0,87740.0,1e-08]
[1766640426815,0.02462992,87747.0,87740.0,1e-08]
[1766640427113,0.02462992,87746.0,87740.0,1e-08]
[1766640427321,0.0114041,87749.0,87740.0,1e-08]
[1766640427621,0.02463219,87748.0,87740.0,1e-08]
[1766640427925,0.02463219,87747.0,87740.0,1e-08]
[1766640428121,0.02463219,87746.0,87740.0,1e-08]
[1766640428323,0.0114037,87752.0,87740.0,1e-08]
[1766640428525,0.02463623,87751.0,87740.0,1e-08]
[1766640428717,0.03604013,87750.0,87740.0,1e-08]
[1766640429018,0.02463623,87749.0,87740.0,1e-08]
[1766640429327,0.02463623,87748.0,87740.0,1e-08]
[1766640429527,0.02463623,87747.0,87740.0,1e-08]
[1766640429718,0.02463623,87746.0,87740.0,1e-08]
[1766640429920,0.0114039,87750.0,87740.0,1e-08]
[1766640430225,0.0114042,87748.0,87740.0,1e-08]
[1766640430416,0.02463642,87747.0,87740.0,1e-08]
[1766640430616,0.0114039,87751.0,87740.0,1e-08]
[1766640433434,0.0114041,87749.0,87740.0,1e-08]
[1766640439833,0.0114037,87752.0,87740.0,1e-08]
[1766640444934,0.011404,87750.0,87740.0,1e-08]
[1766640445336,0.0114043,87748.0,87740.0,1e-08]
[1766640451123,0.0114038,87751.0,87740.0,1e-08]
[1766640459947,0.0114038,87752.0,87740.0,1e-08]
[1766640460135,0.0114041,87749.0,87740.0,1e-08]
[1766640461444,0.04111065,87757.0,87740.0,1e-08]
[1766640462346,0.0114035,87754.0,87740.0,1e-08]
[1766640469946,0.0114037,87752.0,87740.0,1e-08]
[1766640476455,0.0114035,87754.0,87740.0,1e-08]
[1766640476755,0.0114038,87752.0,87740.0,1e-08]
[1766640478362,0.0114033,87755.0,87740.0,1e-08]
[1766640479555,0.00017094,87757.0,87740.0,1e-08]
[1766640483968,0.00017094,87757.0,87741.0,0.0114051]
[1766640484151,0.00017094,87757.0,87741.0,0.0414051]
[1766640484356,0.0218,87760.0,87741.0,0.0414051]
[1766640484866,0.0114028,87759.0,87741.0,0.0414051]
[1766640485256,0.01157374,87759.0,87741.0,0.0414051]
[1766640488972,0.00017094,87759.0,87741.0,0.0414051]
[1766640489270,0.00017094,87759.0,87744.0,0.0114047]
[1766640489471,0.00017094,87759.0,87746.0,0.0114044]
[1766640489665,0.0338,87766.0,87748.0,0.0114041]
[1766640489866,0.0338,87766.0,87748.0,0.0414041]
[1766640490569,0.03397094,87766.0,87748.0,0.0414041]
[1766640490770,0.02499811,87765.0,87748.0,0.0414041]
[1766640490971,0.02499811,87764.0,87748.0,0.0414041]
[1766640491170,0.02499811,87763.0,87748.0,0.0414041]
[1766640491370,0.02499811,87762.0,87748.0,0.0414041]
[1766640491573,0.02499811,87761.0,87748.0,0.0414041]
[1766640491869,0.02499811,87760.0,87748.0,0.0414041]
[1766640492065,0.03397094,87766.0,87748.0,0.0414041]
[1766640492273,0.02499086,87765.0,87748.0,0.03]
[1766640492472,0.02499086,87764.0,87748.0,0.03]
[1766640492673,0.02499086,87763.0,87748.0,0.03]
[1766640492872,0.02499086,87762.0,87748.0,0.03]
[1766640493167,0.02499086,87761.0,87748.0,0.03]
[1766640493375,0.02499086,87760.0,87748.0,0.03]
[1766640493672,0.03397094,87766.0,87748.0,0.03]
[1766640493873,0.02498824,87765.0,87748.0,0.03]
[1766640494076,0.02498824,87764.0,87748.0,0.03]
[1766640494266,0.02498824,87763.0,87748.0,0.03]
[1766640494573,0.02498824,87762.0,87748.0,0.03]
[1766640494775,0.02498824,87761.0,87748.0,0.03]
[1766640494975,0.02498824,87760.0,87749.0,0.011404]
[1766640495175,0.03397094,87766.0,87749.0,0.041404]
[1766640495478,0.02498455,87765.0,87749.0,0.041404]
[1766640495670,0.02498455,87764.0,87749.0,0.041404]
[1766640495870,0.02498455,87763.0,87749.0,0.041404]
[1766640496066,0.02498455,87762.0,87749.0,0.041404]
[1766640496270,0.02498455,87761.0,87749.0,0.03]
[1766640496471,0.02498455,87760.0,87749.0,0.03]
[1766640496672,0.03397094,87766.0,87749.0,0.03]
[1766640496968,0.00017094,87766.0,87749.0,0.03]
[1766640497174,0.00227862,87773.0,87749.0,0.03]
[1766640497378,0.00227862,87773.0,87758.0,0.0114028]
[1766640497565,0.00227862,87773.0,87758.0,0.0414028]
[1766640499370,0.00227862,87773.0,87760.0,0.0114025]
[1766640499569,0.00227862,87773.0,87760.0,0.0414025]
[1766640499874,0.00227862,87773.0,87760.0,0.03]
[1766640516187,0.02494905,87772.0,87760.0,0.03]
[1766640516387,0.00227862,87773.0,87760.0,0.03]
[1766640516578,0.02494905,87772.0,87760.0,0.03]
[1766640516780,0.00227862,87773.0,87760.0,0.03]
[1766640517093,0.02494897,87772.0,87760.0,0.03]
[1766640517383,0.00227862,87773.0,87760.0,0.03]
[1766640517587,0.02495349,87772.0,87760.0,0.03]
[1766640517787,0.00227862,87773.0,87760.0,0.03]
[1766640517982,0.02495346,87772.0,87760.0,0.03]
[1766640518184,0.02495904,87771.0,87760.0,0.03]
[1766640518483,0.00227862,87773.0,87760.0,0.03]
[1766640518783,0.02495902,87772.0,87760.0,0.03]
[1766640518983,0.02495902,87771.0,87760.0,0.03]
[1766640519183,0.00227862,87773.0,87760.0,0.03]
[1766640519487,0.02496364,87772.0,87760.0,0.03]
[1766640519687,0.02496364,87771.0,87760.0,0.03]
[1766640519986,0.00227862,87773.0,87760.0,0.03]
[1766640520188,0.02496362,87772.0,87760.0,0.03]
[1766640520389,0.02496362,87771.0,87760.0,0.03]
[1766640520590,0.00227862,87773.0,87760.0,0.03]
[1766640520794,0.0246929,87772.0,87760.0,0.03]
[1766640521089,0.0246929,87771.0,87760.0,0.03]
[1766640521290,0.00227862,87773.0,87760.0,0.03]
[1766640521487,0.0246958,87772.0,87760.0,0.03]
[1766640521680,0.0246958,87771.0,87760.0,0.03]
[1766640521880,0.00227862,87773.0,87760.0,0.03]
[1766640522081,0.02469579,87772.0,87760.0,0.03]
[1766640522281,0.02469579,87771.0,87760.0,0.03]
[1766640522486,0.00227862,87773.0,87760.0,0.03]
[1766640522693,0.0246993,87772.0,87760.0,0.03]
[1766640522987,0.0246993,87771.0,87760.0,0.03]
[1766640523184,0.02470333,87770.0,87760.0,0.03]
[1766640523389,0.01367962,87773.0,87760.0,0.03]
[1766640523590,0.0114015,87769.0,87760.0,0.03]
[1766640524286,0.0114011,87772.0,87760.0,0.03]
[1766640524592,0.0114013,87770.0,87760.0,0.03]
[1766640525191,0.0247157,87769.0,87760.0,0.03]
[1766640525400,0.0114013,87770.0,87760.0,0.03]
[1766640525581,0.02471569,87769.0,87760.0,0.03]
[1766640525781,0.0114013,87770.0,87760.0,0.03]
[1766640525981,0.0247157,87769.0,87760.0,0.03]
[1766640526181,0.0114013,87770.0,87760.0,0.03]
[1766640526182,0.0247298,87768.0,87760.0,0.03]
[1766640526384,0.0114013,87770.0,87760.0,0.03]
[1766640526594,0.0247298,87769.0,87760.0,0.03]
[1766640526778,0.0247298,87768.0,87760.0,0.03]
[1766640526982,0.0114013,87770.0,87760.0,0.03]
[1766640527182,0.02472982,87769.0,87760.0,0.03]
[1766640527395,0.02472982,87768.0,87760.0,0.03]
[1766640527594,0.0114013,87770.0,87760.0,0.03]
[1766640527782,0.02472969,87769.0,87760.0,0.03]
[1766640527978,0.02472969,87768.0,87760.0,0.03]
[1766640528197,0.0114013,87770.0,87760.0,0.03]
[1766640528395,0.02472937,87769.0,87760.0,0.03]
[1766640528601,0.02472937,87768.0,87760.0,0.03]
[1766640528797,0.0114013,87770.0,87760.0,0.03]
[1766640529002,0.02472935,87769.0,87760.0,0.03]
[1766640529296,0.02472935,87768.0,87760.0,0.03]
[1766640529597,0.0114013,87770.0,87760.0,0.03]
[1766640529791,0.0247291,87769.0,87760.0,0.03]
[1766640529991,0.0247291,87768.0,87760.0,0.03]
[1766640530193,0.0114013,87770.0,87760.0,0.03]
[1766640530389,0.0247289,87769.0,87760.0,0.03]
[1766640530589,0.0247289,87768.0,87760.0,0.03]
[1766640530789,0.0114013,87770.0,87760.0,0.03]
[1766640533919,0.01367962,87773.0,87760.0,0.03]
[1766640534721,0.0114013,87771.0,87760.0,0.03]
[1766640534919,0.00227862,87773.0,87760.0,0.03]
[1766640535117,0.0114017,87768.0,87760.0,0.03]
[1766640535317,0.0114018,87767.0,87760.0,0.03]
[1766640535617,0.011402,87765.0,87747.0,0.0114043]
[1766640535914,0.011402,87765.0,87748.0,0.0684441]
[1766640536114,0.011402,87765.0,87748.0,0.0984441]
[1766640536717,0.011402,87765.0,87748.0,0.09861504]
[1766640537818,0.011402,87765.0,87748.0,0.08721094]
[1766640538018,0.0114033,87755.0,87748.0,0.08721094]
[1766640538219,0.011404,87750.0,87748.0,4e-08]
[1766640538426,0.0114036,87753.0,87748.0,0.0067302]
[1766640538721,0.0114036,87753.0,87748.0,0.01]
[1766640539022,0.0114036,87753.0,87748.0,0.03]
[1766640539217,0.0114031,87757.0,87748.0,0.03]
[1766640540730,0.0114027,87760.0,87748.0,0.03]
[1766640541309,0.011403,87758.0,87748.0,0.03]
[1766640545732,0.0114032,87756.0,87748.0,0.03]
[1766640548534,0.0114035,87754.0,87748.0,0.01]
[1766640549745,0.0114016,87768.0,87742.0,0.00017094]
[1766640549929,0.0114035,87754.0,87742.0,0.08721094]
[1766640554137,0.0114037,87752.0,87742.0,0.08721094]
[1766640554330,0.0114034,87755.0,87742.0,0.08721094]
[1766640555326,0.00017094,87756.0,87742.0,0.08721094]
[1766640556034,0.00017094,87756.0,87743.0,0.0114048]
[1766640556222,0.00017094,87756.0,87743.0,0.0414048]
[1766640557841,0.00017094,87756.0,87743.0,0.03]
[1766640563638,0.0114033,87755.0,87743.0,0.03]
[1766640565433,0.0114036,87753.0,87743.0,0.03]
[1766640569748,0.01157414,87756.0,87743.0,0.03]
[1766640576850,0.0114035,87754.0,87743.0,0.03]
[1766640577048,0.0114037,87752.0,87743.0,0.03]
[1766640577949,0.0114034,87755.0,87743.0,0.03]
[1766640580753,0.02492488,87754.0,87743.0,0.03]
[1766640580941,0.02492488,87753.0,87743.0,0.03]
[1766640581144,0.02492488,87752.0,87743.0,0.03]
[1766640581449,0.0114034,87755.0,87743.0,0.03]
[1766640581653,0.02492507,87754.0,87743.0,0.03]
[1766640581950,0.02492507,87753.0,87743.0,0.03]
[1766640582152,0.02492507,87752.0,87743.0,0.03]
[1766640582351,0.0114034,87755.0,87743.0,0.03]
[1766640582553,0.02492526,87754.0,87743.0,0.03]
[1766640582853,0.02492526,87753.0,87743.0,0.03]
[1766640583044,0.02492526,87752.0,87743.0,0.03]
[1766640583244,0.0114034,87755.0,87743.0,0.03]
[1766640583444,0.02492524,87754.0,87743.0,0.03]
[1766640583644,0.02492524,87753.0,87743.0,0.03]
[1766640583853,0.02492524,87752.0,87743.0,0.03]
[1766640584054,0.0114034,87755.0,87743.0,0.03]
[1766640584256,0.02492524,87754.0,87743.0,0.03]
[1766640584554,0.02492524,87753.0,87743.0,0.03]
[1766640584751,0.02492524,87752.0,87743.0,0.03]
[1766640585053,0.02492524,87751.0,87743.0,0.03]
[1766640585243,0.0114034,87755.0,87743.0,0.03]
[1766640585445,0.02492515,87754.0,87743.0,0.03]
[1766640585644,0.02492515,87753.0,87743.0,0.03]
[1766640585848,0.02492515,87752.0,87743.0,0.03]
[1766640586049,0.0114034,87755.0,87743.0,0.03]
[1766640586251,0.02492518,87754.0,87743.0,0.03]
[1766640586451,0.02492518,87753.0,87743.0,0.03]
[1766640586651,0.02492518,87752.0,87743.0,0.03]
[1766640586860,0.0114034,87755.0,87743.0,0.03]
[1766640587154,0.02492518,87754.0,87743.0,0.03]
[1766640587356,0.02492518,87753.0,87743.0,0.03]
[1766640587556,0.02492518,87752.0,87743.0,0.03]
[1766640587857,0.0114034,87755.0,87743.0,0.03]
[1766640588059,0.0249252,87754.0,87743.0,0.03]
[1766640588252,0.0249252,87753.0,87743.0,0.03]
[1766640588452,0.0249252,87752.0,87743.0,0.03]
[1766640588653,0.0114034,87755.0,87743.0,0.03]
[1766640588856,0.02492522,87754.0,87743.0,0.03]
[1766640589154,0.02492522,87753.0,87743.0,0.03]
[1766640589355,0.02492522,87752.0,87743.0,0.03]
[1766640589558,0.0114034,87755.0,87743.0,0.03]
[1766640589856,0.02492538,87754.0,87743.0,0.03]
[1766640590055,0.02492538,87753.0,87743.0,0.03]
[1766640590251,0.02492538,87752.0,87743.0,0.03]
[1766640590451,0.0114034,87755.0,87743.0,0.03]
[1766640590652,0.02492555,87754.0,87743.0,0.03]
[1766640590863,0.02492555,87753.0,87743.0,0.03]
[1766640591047,0.02492555,87752.0,87743.0,0.03]
[1766640591252,0.0114034,87755.0,87743.0,0.03]
[1766640591553,0.02492534,87754.0,87743.0,0.03]
[1766640591751,0.02492534,87753.0,87743.0,0.03]
[1766640591952,0.02492534,87752.0,87743.0,0.03]
[1766640592162,0.0114034,87755.0,87743.0,0.03]
[1766640592462,0.02492534,87754.0,87743.0,0.03]
[1766640592651,0.02492534,87753.0,87743.0,0.03]
[1766640592852,0.02492534,87752.0,87743.0,0.03]
[1766640593152,0.0114034,87755.0,87743.0,0.03]
[1766640593351,0.0249255,87754.0,87743.0,0.03]
[1766640593551,0.0249255,87753.0,87743.0,0.03]
[1766640593761,0.0249255,87752.0,87743.0,0.03]
[1766640593957,0.0114034,87755.0,87743.0,0.03]
[1766640594157,0.02492481,87754.0,87743.0,0.03]
[1766640594357,0.02492481,87753.0,87743.0,0.03]
[1766640594559,0.02492481,87752.0,87743.0,0.03]
[1766640594859,0.0114034,87755.0,87743.0,0.03]
[1766640595157,0.02492509,87754.0,87743.0,0.03]
[1766640595357,0.04093971,87763.0,87743.0,0.03]
[1766640595556,0.04093971,87764.0,87743.0,0.03]
[1766640596167,0.0114027,87760.0,87743.0,0.03]
[1766640596363,0.01157364,87760.0,87743.0,0.03]
[1766640603352,0.00017094,87760.0,87743.0,0.03]
[1766640603558,0.0114015,87769.0,87743.0,0.03]
[1766640603962,0.0114018,87767.0,87743.0,0.03]
[1766640604464,0.00017094,87764.0,87743.0,0.03]
[1766640605170,0.00017094,87764.0,87745.0,0.0114045]
[1766640605364,0.00017094,87764.0,87745.0,0.0414045]
[1766640606867,9.4e-07,87764.0,87747.0,0.0114042]
[1766640607062,9.4e-07,87764.0,87747.0,0.0414042]
[1766640607470,0.0246921,87763.0,87747.0,0.0414042]
[1766640607767,0.0246921,87762.0,87747.0,0.0414042]
[1766640607970,0.0246921,87761.0,87747.0,0.0414042]
[1766640608265,0.0246921,87760.0,87747.0,0.0414042]
[1766640608470,9.4e-07,87764.0,87750.0,0.0114039]
[1766640608773,9.4e-07,87764.0,87751.0,0.05536]
[1766640608967,9.4e-07,87764.0,87752.0,0.0114036]
[1766640609270,9.4e-07,87764.0,87752.0,0.0414036]
[1766640609469,9.4e-07,87764.0,87754.0,0.0114034]
[1766640609655,9.4e-07,87764.0,87754.0,0.0414034]
[1766640613771,9.4e-07,87764.0,87754.0,0.03]
[1766640618182,9.4e-07,87764.0,87755.0,0.0114033]
[1766640618382,9.4e-07,87764.0,87755.0,0.0414033]
[1766640623086,9.4e-07,87764.0,87759.0,0.0114027]
[1766640623384,9.4e-07,87764.0,87760.0,0.05704]
[1766640623584,9.4e-07,87764.0,87760.0,0.08704]
[1766640636385,9.4e-07,87764.0,87761.0,0.0114025]
[1766640636593,0.0114001,87780.0,87761.0,0.0414025]
[1766640637580,0.00011396,87779.0,87762.0,0.00017094]
[1766640637781,0.00011396,87779.0,87762.0,0.03017094]
[1766640637982,0.00011396,87779.0,87763.0,0.0114022]
[1766640638175,0.00011396,87779.0,87763.0,0.0414022]
[1766640647207,0.05233901,87786.0,87766.0,0.0114018]
[1766640647416,0.05233901,87786.0,87766.0,0.0414018]
[1766640648409,0.0113993,87786.0,87766.0,0.0414018]
[1766640652219,0.0113993,87786.0,87767.0,0.05704]
[1766640652403,0.0113993,87786.0,87767.0,0.08704]
[1766640653318,0.0113993,87786.0,87768.0,0.0114016]
[1766640653519,0.0113993,87786.0,87768.0,0.0414016]
[1766640653706,0.05233901,87786.0,87768.0,0.0414016]
[1766640654210,0.0113993,87786.0,87768.0,0.0414016]
[1766640658019,0.0113996,87784.0,87768.0,0.03]
[1766640659020,0.0113999,87782.0,87768.0,0.03]
[1766640659321,0.02264,87790.0,87768.0,0.03]
[1766640659621,0.0114,87781.0,87768.0,0.03]
[1766640659823,0.02264,87790.0,87768.0,0.03]
[1766640660325,0.0113996,87784.0,87768.0,0.0414015]
[1766640660808,0.0113996,87784.0,87768.0,0.0984415]
[1766640665928,0.0113996,87784.0,87768.0,0.08704]
[1766640666116,0.0113998,87782.0,87768.0,0.08704]
[1766640666317,0.0113997,87783.0,87768.0,0.08704]
[1766640674434,0.0114,87781.0,87768.0,0.08704]
[1766640677434,0.0113995,87784.0,87768.0,0.08704]
[1766640678838,0.0113995,87784.0,87768.0,0.0984415]
[1766640693247,0.05233891,87787.0,87768.0,0.0984415]
[1766640693450,0.0113994,87785.0,87768.0,0.0984415]
[1766640700753,0.04093971,87786.0,87768.0,0.0984415]
[1766640702256,0.05233901,87786.0,87768.0,0.0984415]
[1766640703767,0.0113993,87786.0,87768.0,0.0984415]
[1766640706871,0.04093971,87788.0,87770.0,0.0114013]
[1766640707072,0.04093971,87788.0,87770.0,0.0414013]
[1766640708263,0.0113991,87787.0,87770.0,0.0414013]
[1766640708875,0.0113991,87787.0,87770.0,0.03]
[1766640709078,0.0113991,87787.0,87770.0,0.0414013]
[1766640709375,0.0113991,87787.0,87770.0,0.03]
[1766640710177,0.0113994,87785.0,87770.0,0.03]
[1766640711880,0.0113994,87785.0,87770.0,0.0414013]
[1766640714782,0.0113994,87785.0,87770.0,0.03]
[1766640715081,0.05233881,87788.0,87770.0,0.03]
[1766640715285,0.0113993,87786.0,87770.0,0.03]
[1766640718972,0.0113996,87784.0,87770.0,0.03]
[1766640719782,0.0113991,87787.0,87770.0,0.0414013]
[1766640721787,0.0113995,87785.0,87770.0,0.03]
[1766640721986,0.05233881,87788.0,87770.0,0.03]
[1766640722374,0.0113993,87786.0,87770.0,0.03]
[1766640723388,0.0113996,87784.0,87770.0,0.03]
[1766640727394,0.00495931,87790.0,87770.0,0.03]
[1766640727589,0.02852,87797.0,87774.0,0.0114007]
[1766640727777,0.02852,87797.0,87774.0,0.0414007]
[1766640728187,0.0113985,87793.0,87775.0,0.0114007]
[1766640728385,0.0113985,87793.0,87775.0,0.0414007]
[1766640728785,0.0113985,87793.0,87777.0,0.0114004]
[1766640728983,0.0113985,87793.0,87777.0,0.0414004]
[1766640731195,0.0113985,87793.0,87777.0,0.03]
[1766640749414,0.00227784,87803.0,87785.0,0.0113993]
[1766640749620,0.00227784,87803.0,87785.0,0.04157024]
[1766640750409,0.01367494,87803.0,87785.0,0.04157024]
[1766640752617,1.45368,87824.0,87785.0,0.03017094]
[1766640752817,0.0113946,87822.0,87788.0,0.0113989]
[1766640753013,0.0113946,87822.0,87789.0,0.05704]
[1766640753212,0.0113946,87822.0,87789.0,0.08704]
[1766640753517,0.0113963,87810.0,87790.0,0.0113987]
[1766640753721,0.0113963,87810.0,87790.0,0.0413987]
[1766640753922,0.0684357,87814.0,87792.0,0.0113984]
[1766640754221,0.0684357,87814.0,87792.0,0.0413984]
[1766640754922,0.0684357,87814.0,87795.0,0.0113981]
[1766640755117,0.0684357,87814.0,87795.0,0.0413981]
[1766640755422,0.0684357,87814.0,87795.0,0.03]
[1766640761146,0.011396,87812.0,87795.0,0.03]
[1766640766947,0.05704,87814.0,87795.0,0.03]
[1766640767148,0.011396,87812.0,87795.0,0.03]
[1766640769549,0.011396,87812.0,87796.0,0.011398]
[1766640769749,0.011396,87812.0,87796.0,0.041398]
[1766640771755,0.011396,87812.0,87796.0,0.03]
[1766640774760,0.05704,87814.0,87796.0,0.03]
[1766640775352,0.0113958,87813.0,87796.0,0.03]
[1766640777769,0.0113953,87817.0,87797.0,0.0113977]
[1766640777962,0.0113953,87817.0,87798.0,0.00017084]
[1766640778262,0.0113953,87817.0,87798.0,0.03017084]
[1766640779860,0.0113952,87818.0,87799.0,0.0295975]
[1766640780165,0.0113944,87824.0,87803.0,0.011397]
[1766640780464,0.0113944,87824.0,87803.0,0.041397]
[1766640781165,0.0113944,87824.0,87805.0,0.0113967]
[1766640781364,0.0113944,87824.0,87805.0,0.0413967]
[1766640781664,0.0113947,87822.0,87805.0,0.03]
[1766640782257,0.011395,87820.0,87805.0,0.03]
[1766640783058,0.0113944,87824.0,87805.0,0.03]
[1766640784057,0.04008,87825.0,87806.0,0.0113966]
[1766640784258,0.04008,87825.0,87806.0,0.0413966]
[1766640785967,0.04008,87825.0,87809.0,0.0113962]
[1766640786266,0.04008,87825.0,87809.0,0.03]
[1766640789465,0.0514743,87825.0,87809.0,0.03]
[1766640791765,0.04008,87825.0,87809.0,0.03]
[1766640793271,0.04008,87825.0,87809.0,0.0413963]
[1766640793578,0.04320939,87833.0,87813.0,0.0113957]
[1766640793760,0.04320939,87833.0,87813.0,0.0413957]
[1766640793761,0.0113933,87832.0,87813.0,0.0413957]
[1766640794369,0.0113933,87832.0,87813.0,0.03]
[1766640795069,0.0113948,87821.0,87810.0,0.0444]
[1766640795374,0.0113948,87821.0,87810.0,0.0544]
[1766640795974,0.05460259,87833.0,87798.0,0.00017084]
[1766640796267,0.0113936,87830.0,87798.0,0.03017084]
[1766640796474,0.0113959,87812.0,87798.0,0.03017084]
[1766640796770,0.0113959,87812.0,87799.0,0.057]
[1766640797071,0.0113959,87812.0,87799.0,0.087]
[1766640797371,0.0113955,87815.0,87799.0,0.087]
[1766640805473,0.0113952,87818.0,87799.0,0.087]
[1766640807477,0.0113952,87818.0,87800.0,0.0113974]
[1766640807678,0.0113952,87818.0,87800.0,0.0413974]
[1766640809580,0.0113954,87816.0,87800.0,0.0413974]
[1766640812179,0.00708,87824.0,87800.0,0.0413974]
[1766640812180,0.00708,87824.0,87800.0,0.03]
[1766640813272,0.0113947,87822.0,87804.0,0.0113969]
[1766640813567,0.0113947,87822.0,87804.0,0.0413969]
[1766640817084,0.0113949,87820.0,87804.0,0.03]
[1766640823595,0.0113952,87818.0,87804.0,0.03]
[1766640825082,0.0113949,87820.0,87804.0,0.03]
[1766640827891,0.00708,87824.0,87804.0,0.03]
[1766640828096,0.0113952,87818.0,87804.0,0.03]
[1766640828693,0.00708,87824.0,87804.0,0.03]
[1766640828894,0.0113956,87815.0,87804.0,0.03]
[1766640829093,0.0113946,87822.0,87804.0,0.03]
[1766640829298,0.011396,87812.0,87804.0,0.03]
[1766640829995,0.0113955,87816.0,87804.0,0.03]
[1766640836305,0.04093233,87823.0,87804.0,0.03]
[1766640836510,0.04801233,87824.0,87804.0,0.03]
[1766640836812,0.0113954,87816.0,87804.0,0.03]
[1766640839216,0.04093233,87823.0,87798.0,0.00017084]
[1766640839419,0.0113957,87814.0,87798.0,0.01017084]
[1766640840412,0.011396,87812.0,87798.0,0.01017084]
[1766640852029,0.0113962,87810.0,87798.0,0.01017084]
[1766640852628,0.0113965,87808.0,87798.0,0.01017084]
[1766640853028,0.0113961,87811.0,87798.0,0.01017084]
[1766640853933,0.0113951,87818.0,87798.0,4e-08]
[1766640854130,0.011397,87804.0,87798.0,4e-08]
[1766640855732,0.0113966,87807.0,87798.0,4e-08]
[1766640858324,0.0113969,87805.0,87798.0,4e-08]
[1766640860634,0.0113969,87805.0,87793.0,0.057]
[1766640860835,0.0113969,87805.0,87793.0,0.087]
[1766640862029,0.0113971,87803.0,87793.0,0.087]